[Event "Titled Tuesday Blitz April 12 Early 2022"]
[White "Bures, Vit"]
[Black "Sovetbekova, Nurai"]
[WhiteFideId "309052"]
[BlackFideId "13801910"]
[WhiteElo "2079"]
[BlackElo "1538"]
[Result "1/2-1/2"]
[Round "04"]
[TimeControl "180+1"]
[Date "2022.04.13"]
[WhiteClock "0:00:02"]
[BlackClock "0:00:05"]

1. d4 {[%clk 0:03:00]}  Nf6 {[%clk 0:02:58]} 2. c4 {[%clk 0:03:00]}  g6 {[%clk 0:02:58]} 3. Nc3 {[%clk 0:03:00]}  d5 {[%clk 0:02:58]} 4. cxd5 {[%clk 0:03:01]}  Nxd5 {[%clk 0:02:59]} 5. e4 {[%clk 0:03:02]}  Nxc3 {[%clk 0:02:59]} 6. bxc3 {[%clk 0:03:03]}  Bg7 {[%clk 0:02:59]} 7. Nf3 {[%clk 0:03:04]}  c5 {[%clk 0:03:00]} 8. Be3 {[%clk 0:03:03]}  Qa5 {[%clk 0:02:59]} 9. Qd2 {[%clk 0:03:03]}  Nc6 {[%clk 0:02:56]} 10. Rb1 {[%clk 0:02:58]}  cxd4 {[%clk 0:02:55]} 11. cxd4 {[%clk 0:02:59]}  Qxd2+ {[%clk 0:02:54]} 12. Kxd2 {[%clk 0:03:00]}  O-O {[%clk 0:02:53]} 13. Bd3 {[%clk 0:03:00]}  Rd8 {[%clk 0:02:26]} 14. d5 {[%clk 0:02:59]}  Na5 {[%clk 0:02:23]} 15. Ke2 {[%clk 0:02:28]}  f5 {[%clk 0:02:11]} 16. Rhc1 {[%clk 0:02:14]}  fxe4 {[%clk 0:01:58]} 17. Bxe4 {[%clk 0:02:15]}  Bf5 {[%clk 0:01:45]} 18. Bxf5 {[%clk 0:02:05]}  gxf5 {[%clk 0:01:46]} 19. Rc7 {[%clk 0:02:05]}  Rxd5 {[%clk 0:01:43]} 20. Rxe7 {[%clk 0:02:01]}  Rad8 {[%clk 0:01:30]} 21. Bxa7 {[%clk 0:01:41]}  Bf8 {[%clk 0:00:43]} 22. Rc7 {[%clk 0:01:01]}  Bd6 {[%clk 0:00:32]} 23. Rcc1 {[%clk 0:00:46]}  Bf4 {[%clk 0:00:22]} 24. Re1 {[%clk 0:00:19]}  Nc4 {[%clk 0:00:14]} 25. Rxb7 {[%clk 0:00:15]}  Nd2 {[%clk 0:00:10]} 26. Nxd2 {[%clk 0:00:13]}  Rxd2+ {[%clk 0:00:11]} 27. Kf1 {[%clk 0:00:14]}  R8d7 {[%clk 0:00:08]} 28. Rxd7 {[%clk 0:00:13]}  Rxd7 {[%clk 0:00:09]} 29. Bc5 {[%clk 0:00:12]}  Rc7 {[%clk 0:00:08]} 30. Be3 {[%clk 0:00:09]}  Bd6 {[%clk 0:00:05]} 31. a4 {[%clk 0:00:08]}  Rc4 {[%clk 0:00:04]} 32. a5 {[%clk 0:00:08]}  Ra4 {[%clk 0:00:04]} 33. Bb6 {[%clk 0:00:08]}  Bb4 {[%clk 0:00:04]} 34. Re5 {[%clk 0:00:07]}  Ra1+ {[%clk 0:00:04]} 35. Ke2 {[%clk 0:00:07]}  Re1+ {[%clk 0:00:04]} 36. Kf3 {[%clk 0:00:07]}  Rxe5 {[%clk 0:00:04]} 37. a6 {[%clk 0:00:05]}  Re8 {[%clk 0:00:02]} 38. a7 {[%clk 0:00:05]}  Ra8 {[%clk 0:00:03]} 39. Kf4 {[%clk 0:00:05]}  Bd6+ {[%clk 0:00:02]} 40. Kxf5 {[%clk 0:00:06]}  Bxh2 {[%clk 0:00:03]} 41. g3 {[%clk 0:00:06]}  Kf7 {[%clk 0:00:03]} 42. Kg4 {[%clk 0:00:06]}  Bg1 {[%clk 0:00:03]} 43. Kf3 {[%clk 0:00:06]}  Ke6 {[%clk 0:00:03]} 44. Kg2 {[%clk 0:00:06]}  Bxf2 {[%clk 0:00:03]} 45. Kxf2 {[%clk 0:00:06]}  Kd6 {[%clk 0:00:03]} 46. Kf3 {[%clk 0:00:07]}  Kc6 {[%clk 0:00:03]} 47. Be3 {[%clk 0:00:04]}  Kb7 {[%clk 0:00:03]} 48. g4 {[%clk 0:00:04]}  Rf8+ {[%clk 0:00:03]} 49. Kg3 {[%clk 0:00:04]}  Rg8 {[%clk 0:00:03]} 50. Kh4 {[%clk 0:00:04]}  Re8 {[%clk 0:00:03]} 51. Bf2 {[%clk 0:00:04]}  Re2 {[%clk 0:00:03]} 52. Kg3 {[%clk 0:00:04]}  Rd2 {[%clk 0:00:03]} 53. Kf3 {[%clk 0:00:04]}  Rd3+ {[%clk 0:00:03]} 54. Be3 {[%clk 0:00:04]}  Rd1 {[%clk 0:00:02]} 55. Kf4 {[%clk 0:00:04]}  Rf1+ {[%clk 0:00:03]} 56. Kg5 {[%clk 0:00:04]}  Rf3 {[%clk 0:00:03]} 57. Bd4 {[%clk 0:00:04]}  Rd3 {[%clk 0:00:03]} 58. Bf2 {[%clk 0:00:01]}  Rd2 {[%clk 0:00:03]} 59. Bc5 {[%clk 0:00:01]}  Rc2 {[%clk 0:00:03]} 60. Be3 {[%clk 0:00:01]}  Rc3 {[%clk 0:00:03]} 61. Bf2 {[%clk 0:00:01]}  Rc2 {[%clk 0:00:04]} 62. Be3 {[%clk 0:00:01]}  Re2 {[%clk 0:00:03]} 63. Bd4 {[%clk 0:00:01]}  Rh2 {[%clk 0:00:03]} 64. Be3 {[%clk 0:00:02]}  Rh3 {[%clk 0:00:03]} 65. Bd4 {[%clk 0:00:02]}  Rd3 {[%clk 0:00:04]} 66. Bf2 {[%clk 0:00:02]}  Rd5+ {[%clk 0:00:04]} 67. Kh6 {[%clk 0:00:02]}  Rd2 {[%clk 0:00:04]} 68. Be3 {[%clk 0:00:02]}  Rh2+ {[%clk 0:00:05]} 69. Kg5 {[%clk 0:00:01]}  Rh3 {[%clk 0:00:05]} 70. Bd4 {[%clk 0:00:02]}  Rd3 {[%clk 0:00:05]} 1/2-1/2


[Site "https://www.chess.com"]

[Event "Titled Tuesday Blitz April 12 Early 2022"]
[White "Butti, Enrique"]
[Black "Garv Gaur"]
[WhiteFideId "3700470"]
[BlackFideId "45030839"]
[WhiteElo "2080"]
[BlackElo "1950"]
[Result "0-1"]
[Round "04"]
[TimeControl "180+1"]
[Date "2022.04.13"]
[WhiteClock "0:00:01"]
[BlackClock "0:00:03"]

1. d4 {[%clk 0:02:59]}  d5 {[%clk 0:02:59]} 2. c4 {[%clk 0:02:57]}  e6 {[%clk 0:02:59]} 3. Nf3 {[%clk 0:02:57]}  Nf6 {[%clk 0:02:58]} 4. e3 {[%clk 0:02:56]}  Be7 {[%clk 0:02:58]} 5. Nc3 {[%clk 0:02:55]}  O-O {[%clk 0:02:58]} 6. b3 {[%clk 0:02:54]}  b6 {[%clk 0:02:59]} 7. Bb2 {[%clk 0:02:54]}  Bb7 {[%clk 0:02:59]} 8. Bd3 {[%clk 0:02:53]}  c5 {[%clk 0:02:59]} 9. O-O {[%clk 0:02:52]}  Nc6 {[%clk 0:02:59]} 10. Qe2 {[%clk 0:02:52]}  cxd4 {[%clk 0:02:52]} 11. exd4 {[%clk 0:02:51]}  Rc8 {[%clk 0:02:39]} 12. Rad1 {[%clk 0:02:43]}  Qc7 {[%clk 0:02:33]} 13. cxd5 {[%clk 0:02:31]}  exd5 {[%clk 0:02:28]} 14. Ne5 {[%clk 0:02:23]}  Bd6 {[%clk 0:02:09]} 15. Nb5 {[%clk 0:02:16]}  Qb8 {[%clk 0:02:03]} 16. f4 {[%clk 0:02:04]}  Rfe8 {[%clk 0:01:48]} 17. Nxd6 {[%clk 0:01:57]}  Qxd6 {[%clk 0:01:49]} 18. f5 {[%clk 0:01:49]}  Re7 {[%clk 0:01:19]} 19. g4 {[%clk 0:01:37]}  Ne4 {[%clk 0:01:13]} 20. Bxe4 {[%clk 0:01:34]}  dxe4 {[%clk 0:01:13]} 21. g5 {[%clk 0:01:33]}  Rxe5 {[%clk 0:00:57]} 22. dxe5 {[%clk 0:01:30]}  Qc5+ {[%clk 0:00:57]} 23. Kg2 {[%clk 0:01:15]}  Nxe5 {[%clk 0:00:54]} 24. Rc1 {[%clk 0:00:58]}  Qd5 {[%clk 0:00:26]} 25. Rxc8+ {[%clk 0:00:55]}  Bxc8 {[%clk 0:00:27]} 26. Bxe5 {[%clk 0:00:49]}  Qxe5 {[%clk 0:00:28]} 27. Qe3 {[%clk 0:00:46]}  g6 {[%clk 0:00:09]} 28. f6 {[%clk 0:00:42]}  h6 {[%clk 0:00:07]} 29. gxh6 {[%clk 0:00:34]}  Kh7 {[%clk 0:00:07]} 30. Qf4 {[%clk 0:00:31]}  Qd5 {[%clk 0:00:06]} 31. Kg3 {[%clk 0:00:29]}  Be6 {[%clk 0:00:05]} 32. Rc1 {[%clk 0:00:27]}  Qd3+ {[%clk 0:00:05]} 33. Kf2 {[%clk 0:00:25]}  Qd4+ {[%clk 0:00:02]} 34. Qe3 {[%clk 0:00:23]}  Qe5 {[%clk 0:00:03]} 35. Qg3 {[%clk 0:00:19]}  Qxf6+ {[%clk 0:00:03]} 36. Ke3 {[%clk 0:00:18]}  Qf5 {[%clk 0:00:02]} 37. Rc7 {[%clk 0:00:13]}  Qd5 {[%clk 0:00:02]} 38. Qf4 {[%clk 0:00:07]}  Qd3+ {[%clk 0:00:02]} 39. Kf2 {[%clk 0:00:07]}  e3+ {[%clk 0:00:03]} 40. Qxe3 {[%clk 0:00:06]}  Qf5+ {[%clk 0:00:03]} 41. Qf3 {[%clk 0:00:05]}  Qe5 {[%clk 0:00:03]} 42. Rxf7+ {[%clk 0:00:04]}  Bxf7 {[%clk 0:00:03]} 43. Qxf7+ {[%clk 0:00:05]}  Kxh6 {[%clk 0:00:04]} 44. Qxa7 {[%clk 0:00:04]}  Qf5+ {[%clk 0:00:04]} 45. Kg2 {[%clk 0:00:04]}  Qc2+ {[%clk 0:00:04]} 46. Kg3 {[%clk 0:00:04]}  Qd3+ {[%clk 0:00:05]} 47. Kg2 {[%clk 0:00:03]}  Qe2+ {[%clk 0:00:05]} 48. Kg3 {[%clk 0:00:03]}  Qe3+ {[%clk 0:00:05]} 49. Kg2 {[%clk 0:00:03]}  Kg5 {[%clk 0:00:05]} 50. Qb7 {[%clk 0:00:02]}  Kh4 {[%clk 0:00:05]} 51. Qf3 {[%clk 0:00:01]}  Qe6 {[%clk 0:00:03]} 52. Qg3+ {[%clk 0:00:01]}  Kh5 {[%clk 0:00:03]} 53. Qf3+ {[%clk 0:00:01]}  Kh6 {[%clk 0:00:03]} 54. Qf4+ {[%clk 0:00:01]}  g5 {[%clk 0:00:03]} 0-1


[Site "https://www.chess.com"]

[Event "Titled Tuesday Blitz April 12 Early 2022"]
[White "Cagara, Paulina"]
[Black "Dwilewicz, Katarzyna"]
[WhiteFideId "1124870"]
[BlackFideId "1148486"]
[WhiteElo "1780"]
[BlackElo "1907"]
[Result "0-1"]
[Round "04"]
[TimeControl "180+1"]
[Date "2022.04.13"]
[WhiteClock "0:00:43"]
[BlackClock "0:00:28"]

1. e4 {[%clk 0:03:00]}  c5 {[%clk 0:02:59]} 2. Nc3 {[%clk 0:03:00]}  d6 {[%clk 0:02:55]} 3. g3 {[%clk 0:02:59]}  g6 {[%clk 0:02:54]} 4. Bg2 {[%clk 0:02:59]}  Bg7 {[%clk 0:02:54]} 5. Nge2 {[%clk 0:03:00]}  Nc6 {[%clk 0:02:55]} 6. O-O {[%clk 0:03:00]}  e6 {[%clk 0:02:52]} 7. d3 {[%clk 0:03:00]}  Nge7 {[%clk 0:02:53]} 8. f4 {[%clk 0:03:00]}  O-O {[%clk 0:02:53]} 9. h3 {[%clk 0:03:00]}  Rb8 {[%clk 0:02:53]} 10. g4 {[%clk 0:03:00]}  f5 {[%clk 0:02:40]} 11. exf5 {[%clk 0:02:45]}  gxf5 {[%clk 0:02:35]} 12. g5 {[%clk 0:02:43]}  Nd4 {[%clk 0:02:30]} 13. Nxd4 {[%clk 0:02:43]}  Bxd4+ {[%clk 0:02:27]} 14. Kh1 {[%clk 0:02:42]}  b5 {[%clk 0:02:27]} 15. Ne2 {[%clk 0:02:42]}  Bg7 {[%clk 0:02:26]} 16. Ng3 {[%clk 0:02:39]}  b4 {[%clk 0:02:21]} 17. Nh5 {[%clk 0:02:36]}  Bh8 {[%clk 0:02:21]} 18. Qe1 {[%clk 0:02:36]}  Bb7 {[%clk 0:02:20]} 19. Qxe6+ {[%clk 0:02:35]}  Rf7 {[%clk 0:02:16]} 20. Bd2 {[%clk 0:02:23]}  Bc8 {[%clk 0:02:10]} 21. Qe2 {[%clk 0:02:13]}  Bxb2 {[%clk 0:02:11]} 22. Rae1 {[%clk 0:02:10]}  Bd4 {[%clk 0:02:00]} 23. Rf3 {[%clk 0:02:02]}  Bb7 {[%clk 0:01:56]} 24. Rg3 {[%clk 0:02:01]}  Bxg2+ {[%clk 0:01:57]} 25. Rxg2 {[%clk 0:02:01]}  Ng6 {[%clk 0:01:52]} 26. Qe6 {[%clk 0:01:56]}  Qd7 {[%clk 0:01:50]} 27. Qd5 {[%clk 0:01:52]}  Qb7 {[%clk 0:01:33]} 28. Qc4 {[%clk 0:01:41]}  Nh4 {[%clk 0:01:31]} 29. Re2 {[%clk 0:01:41]}  d5 {[%clk 0:01:25]} 30. Qb3 {[%clk 0:01:41]}  Nxg2 {[%clk 0:01:24]} 31. Rxg2 {[%clk 0:01:41]}  Qc6 {[%clk 0:01:23]} 32. Qb1 {[%clk 0:01:34]}  Re8 {[%clk 0:01:23]} 33. Qf1 {[%clk 0:01:32]}  Kh8 {[%clk 0:01:11]} 34. Kh2 {[%clk 0:01:31]}  a5 {[%clk 0:01:09]} 35. Qf3 {[%clk 0:01:31]}  a4 {[%clk 0:01:09]} 36. h4 {[%clk 0:01:22]}  c4 {[%clk 0:00:50]} 37. dxc4 {[%clk 0:01:17]}  Qxc4 {[%clk 0:00:49]} 38. g6 {[%clk 0:01:17]}  hxg6 {[%clk 0:00:47]} 39. Be1 {[%clk 0:00:55]}  Rxe1 {[%clk 0:00:45]} 40. Qg3 {[%clk 0:00:50]}  Qf1 {[%clk 0:00:29]} 41. Qxg6 {[%clk 0:00:44]}  Qh1+ {[%clk 0:00:28]} 42. Kg3 {[%clk 0:00:45]}  Re3+ {[%clk 0:00:29]} 43. Kf2 {[%clk 0:00:43]}  Qe1# {[%clk 0:00:28]} 0-1


[Site "https://www.chess.com"]

[Event "Titled Tuesday Blitz April 12 Early 2022"]
[White "Caputcuoglu, Zeki Berke"]
[Black "Taichman, Ori"]
[WhiteFideId "34548610"]
[BlackFideId "2804069"]
[WhiteElo "1368"]
[BlackElo "2227"]
[Result "1-0"]
[Round "04"]
[TimeControl "180+1"]
[Date "2022.04.13"]
[WhiteClock "0:00:26"]
[BlackClock "0:01:02"]

1. e4 {[%clk 0:03:00]}  c5 {[%clk 0:02:53]} 2. Nf3 {[%clk 0:03:00]}  Nc6 {[%clk 0:02:53]} 3. d4 {[%clk 0:03:01]}  cxd4 {[%clk 0:02:54]} 4. Nxd4 {[%clk 0:03:01]}  d5 {[%clk 0:02:54]} 5. Bb5 {[%clk 0:02:37]}  dxe4 {[%clk 0:02:54]} 6. Nxc6 {[%clk 0:02:21]}  Qxd1+ {[%clk 0:02:55]} 7. Kxd1 {[%clk 0:02:20]}  Bd7 {[%clk 0:02:50]} 8. Nd4 {[%clk 0:02:19]}  O-O-O {[%clk 0:02:50]} 9. Ke2 {[%clk 0:02:15]}  e5 {[%clk 0:02:47]} 10. Bxd7+ {[%clk 0:02:12]}  Rxd7 {[%clk 0:02:48]} 11. Nb5 {[%clk 0:02:12]}  a6 {[%clk 0:02:47]} 12. N5c3 {[%clk 0:02:13]}  f5 {[%clk 0:02:47]} 13. a4 {[%clk 0:02:09]}  Bb4 {[%clk 0:02:46]} 14. Rd1 {[%clk 0:02:06]}  Rc7 {[%clk 0:02:46]} 15. Bd2 {[%clk 0:02:01]}  Nf6 {[%clk 0:02:32]} 16. Nxe4 {[%clk 0:01:44]}  Nxe4 {[%clk 0:02:32]} 17. Bxb4 {[%clk 0:01:44]}  Rxc2+ {[%clk 0:02:33]} 18. Nd2 {[%clk 0:01:37]}  Rxb2 {[%clk 0:02:31]} 19. Rab1 {[%clk 0:01:22]}  Rxb1 {[%clk 0:02:22]} 20. Rxb1 {[%clk 0:01:22]}  Nxd2 {[%clk 0:02:20]} 21. Bxd2 {[%clk 0:01:22]}  Rd8 {[%clk 0:02:19]} 22. Bc3 {[%clk 0:01:21]}  Rd5 {[%clk 0:02:18]} 23. Rd1 {[%clk 0:01:21]}  Rc5 {[%clk 0:02:14]} 24. Rc1 {[%clk 0:01:22]}  Kd7 {[%clk 0:02:06]} 25. Bb2 {[%clk 0:01:05]}  Ra5 {[%clk 0:02:00]} 26. Rc4 {[%clk 0:01:02]}  b5 {[%clk 0:01:56]} 27. axb5 {[%clk 0:01:02]}  Rxb5 {[%clk 0:01:57]} 28. Bc3 {[%clk 0:01:00]}  Kd6 {[%clk 0:01:53]} 29. Ra4 {[%clk 0:00:59]}  Rb6 {[%clk 0:01:52]} 30. Ra5 {[%clk 0:00:58]}  e4 {[%clk 0:01:47]} 31. Bxg7 {[%clk 0:00:56]}  Rc6 {[%clk 0:01:48]} 32. Rxf5 {[%clk 0:00:53]}  Rc2+ {[%clk 0:01:47]} 33. Ke3 {[%clk 0:00:53]}  Ra2 {[%clk 0:01:40]} 34. Kxe4 {[%clk 0:00:51]}  a5 {[%clk 0:01:40]} 35. Bd4 {[%clk 0:00:47]}  a4 {[%clk 0:01:39]} 36. Ra5 {[%clk 0:00:47]}  Kc6 {[%clk 0:01:28]} 37. g3 {[%clk 0:00:41]}  Re2+ {[%clk 0:01:18]} 38. Be3 {[%clk 0:00:38]}  Ra2 {[%clk 0:01:18]} 39. h4 {[%clk 0:00:36]}  a3 {[%clk 0:01:10]} 40. Bc5 {[%clk 0:00:35]}  Rc2 {[%clk 0:01:10]} 41. Bxa3 {[%clk 0:00:33]}  Rxf2 {[%clk 0:01:10]} 42. Bc1 {[%clk 0:00:29]}  Kd6 {[%clk 0:01:04]} 43. Bf4+ {[%clk 0:00:29]}  Ke6 {[%clk 0:01:04]} 44. Rh5 {[%clk 0:00:29]}  Re2+ {[%clk 0:01:03]} 45. Kf3 {[%clk 0:00:29]}  Ra2 {[%clk 0:01:03]} 46. Rxh7 {[%clk 0:00:30]}  Kf5 {[%clk 0:01:04]} 47. g4+ {[%clk 0:00:30]}  Kg6 {[%clk 0:01:04]} 48. Rh6+ {[%clk 0:00:30]}  Kg7 {[%clk 0:01:04]} 49. Rb6 {[%clk 0:00:30]}  Ra3+ {[%clk 0:01:04]} 50. Be3 {[%clk 0:00:30]}  Kh7 {[%clk 0:01:02]} 51. h5 {[%clk 0:00:29]}  Kg7 {[%clk 0:01:03]} 52. g5 {[%clk 0:00:30]}  Kh7 {[%clk 0:01:03]} 53. Re6 {[%clk 0:00:28]}  Kg7 {[%clk 0:01:03]} 54. Kg4 {[%clk 0:00:28]}  Ra4+ {[%clk 0:01:02]} 55. Bf4 {[%clk 0:00:28]}  Kf7 {[%clk 0:01:02]} 56. Rf6+ {[%clk 0:00:29]}  Kg7 {[%clk 0:01:02]} 57. h6+ {[%clk 0:00:29]}  Kh7 {[%clk 0:01:03]} 58. Kh5 {[%clk 0:00:30]}  Ra8 {[%clk 0:01:01]} 59. g6+ {[%clk 0:00:30]}  Kg8 {[%clk 0:01:02]} 60. h7+ {[%clk 0:00:27]}  Kh8 {[%clk 0:01:01]} 61. Be5 {[%clk 0:00:26]}  Ra5 {[%clk 0:01:02]} 62. Rf8# {[%clk 0:00:26]} 1-0


[Site "https://www.chess.com"]

[Event "Titled Tuesday Blitz April 12 Early 2022"]
[White "Chernomordik, Pavel"]
[Black "Mekhitarian, Krikor Sevag"]
[WhiteFideId "2804530"]
[BlackFideId "2107660"]
[WhiteElo "2220"]
[BlackElo "2598"]
[Result "0-1"]
[Round "04"]
[TimeControl "180+1"]
[Date "2022.04.13"]
[WhiteClock "0:00:27"]
[BlackClock "0:01:16"]

1. e4 {[%clk 0:03:00]}  c5 {[%clk 0:02:53]} 2. Nc3 {[%clk 0:03:00]}  e6 {[%clk 0:02:53]} 3. f4 {[%clk 0:02:59]}  d5 {[%clk 0:02:51]} 4. Nf3 {[%clk 0:02:59]}  Nc6 {[%clk 0:02:50]} 5. Bb5 {[%clk 0:02:57]}  Ne7 {[%clk 0:02:50]} 6. exd5 {[%clk 0:02:57]}  Nxd5 {[%clk 0:02:50]} 7. O-O {[%clk 0:02:53]}  Be7 {[%clk 0:02:33]} 8. Ne5 {[%clk 0:02:49]}  Bd7 {[%clk 0:02:28]} 9. Nxd5 {[%clk 0:02:37]}  exd5 {[%clk 0:02:27]} 10. Nxd7 {[%clk 0:02:30]}  Qxd7 {[%clk 0:02:27]} 11. f5 {[%clk 0:02:26]}  O-O-O {[%clk 0:02:23]} 12. Qg4 {[%clk 0:02:14]}  Bd6 {[%clk 0:02:19]} 13. d3 {[%clk 0:02:07]}  Qc7 {[%clk 0:02:18]} 14. Bf4 {[%clk 0:01:48]}  Bxf4 {[%clk 0:02:14]} 15. Qxf4 {[%clk 0:01:44]}  Qxf4 {[%clk 0:02:08]} 16. Rxf4 {[%clk 0:01:42]}  Nd4 {[%clk 0:02:09]} 17. Rxd4 {[%clk 0:01:39]}  cxd4 {[%clk 0:02:10]} 18. c3 {[%clk 0:01:32]}  dxc3 {[%clk 0:02:02]} 19. bxc3 {[%clk 0:01:31]}  Kc7 {[%clk 0:02:01]} 20. d4 {[%clk 0:01:29]}  Kd6 {[%clk 0:02:00]} 21. Kf2 {[%clk 0:01:27]}  Rc8 {[%clk 0:01:57]} 22. Rc1 {[%clk 0:01:26]}  Rc7 {[%clk 0:01:58]} 23. Ke3 {[%clk 0:01:26]}  Rhc8 {[%clk 0:01:58]} 24. Kd2 {[%clk 0:01:25]}  Re7 {[%clk 0:01:58]} 25. Bd3 {[%clk 0:01:19]}  f6 {[%clk 0:01:55]} 26. Rb1 {[%clk 0:01:17]}  Rc6 {[%clk 0:01:54]} 27. a4 {[%clk 0:01:13]}  Rb6 {[%clk 0:01:54]} 28. Rb4 {[%clk 0:01:03]}  Rxb4 {[%clk 0:01:52]} 29. cxb4 {[%clk 0:01:02]}  g6 {[%clk 0:01:46]} 30. fxg6 {[%clk 0:00:57]}  hxg6 {[%clk 0:01:45]} 31. h4 {[%clk 0:00:53]}  f5 {[%clk 0:01:37]} 32. g3 {[%clk 0:00:50]}  Ke6 {[%clk 0:01:35]} 33. Ke3 {[%clk 0:00:46]}  Kf6+ {[%clk 0:01:34]} 34. Kd2 {[%clk 0:00:44]}  Rh7 {[%clk 0:01:31]} 35. Ke3 {[%clk 0:00:41]}  Re7+ {[%clk 0:01:27]} 36. Kd2 {[%clk 0:00:30]}  g5 {[%clk 0:01:17]} 37. hxg5+ {[%clk 0:00:29]}  Kxg5 {[%clk 0:01:18]} 38. Be2 {[%clk 0:00:28]}  Rxe2+ {[%clk 0:01:13]} 39. Kxe2 {[%clk 0:00:28]}  Kg4 {[%clk 0:01:14]} 40. Kf2 {[%clk 0:00:27]}  f4 {[%clk 0:01:15]} 41. gxf4 {[%clk 0:00:27]}  Kxf4 {[%clk 0:01:16]} 0-1


[Site "https://www.chess.com"]

[Event "Titled Tuesday Blitz April 12 Early 2022"]
[White "Colas, Joshua"]
[Black "Samaganova, Aleksandra"]
[WhiteFideId "2044447"]
[BlackFideId "13800221"]
[WhiteElo "2347"]
[BlackElo "1859"]
[Result "1-0"]
[Round "04"]
[TimeControl "180+1"]
[Date "2022.04.13"]
[WhiteClock "0:00:57"]
[BlackClock "0:00:08"]

1. d4 {[%clk 0:02:54]}  Nf6 {[%clk 0:02:58]} 2. c4 {[%clk 0:02:54]}  e6 {[%clk 0:02:58]} 3. g3 {[%clk 0:02:53]}  d5 {[%clk 0:02:58]} 4. Bg2 {[%clk 0:02:46]}  Be7 {[%clk 0:02:56]} 5. Nf3 {[%clk 0:02:46]}  O-O {[%clk 0:02:56]} 6. O-O {[%clk 0:02:47]}  c5 {[%clk 0:02:49]} 7. cxd5 {[%clk 0:02:45]}  Nxd5 {[%clk 0:02:46]} 8. dxc5 {[%clk 0:02:36]}  Bxc5 {[%clk 0:02:44]} 9. Qc2 {[%clk 0:02:31]}  Qe7 {[%clk 0:02:24]} 10. a3 {[%clk 0:02:26]}  a5 {[%clk 0:02:01]} 11. e4 {[%clk 0:02:19]}  Nb6 {[%clk 0:01:43]} 12. Bg5 {[%clk 0:02:06]}  f6 {[%clk 0:01:38]} 13. Bd2 {[%clk 0:02:07]}  Nc6 {[%clk 0:01:31]} 14. Nc3 {[%clk 0:02:06]}  a4 {[%clk 0:01:20]} 15. e5 {[%clk 0:02:03]}  f5 {[%clk 0:01:12]} 16. Nb5 {[%clk 0:01:52]}  Nd7 {[%clk 0:01:03]} 17. Nc7 {[%clk 0:01:37]}  Rb8 {[%clk 0:00:53]} 18. Qxa4 {[%clk 0:01:30]}  h6 {[%clk 0:00:42]} 19. Bc3 {[%clk 0:01:26]}  Bb6 {[%clk 0:00:40]} 20. Nb5 {[%clk 0:01:26]}  Nc5 {[%clk 0:00:35]} 21. Qc4 {[%clk 0:01:21]}  Ne4 {[%clk 0:00:33]} 22. Rad1 {[%clk 0:01:17]}  Rd8 {[%clk 0:00:24]} 23. Nbd4 {[%clk 0:01:08]}  Nxc3 {[%clk 0:00:13]} 24. Nxc6 {[%clk 0:01:03]}  Ne2+ {[%clk 0:00:08]} 25. Qxe2 {[%clk 0:01:03]}  bxc6 {[%clk 0:00:08]} 26. Rxd8+ {[%clk 0:00:59]}  Bxd8 {[%clk 0:00:08]} 27. Nd4 {[%clk 0:00:57]} 1-0


[Site "https://www.chess.com"]

[Event "Titled Tuesday Blitz April 12 Early 2022"]
[White "Coto Mederos, Michel"]
[Black "Sailer, Mike"]
[WhiteFideId "3508528"]
[BlackFideId "2012901"]
[WhiteElo "2427"]
[BlackElo "2109"]
[Result "1-0"]
[Round "04"]
[TimeControl "180+1"]
[Date "2022.04.13"]
[WhiteClock "0:01:05"]
[BlackClock "0:01:32"]

1. c4 {[%clk 0:03:00]}  c6 {[%clk 0:02:59]} 2. d4 {[%clk 0:02:54]}  d5 {[%clk 0:02:59]} 3. Nf3 {[%clk 0:02:51]}  Nf6 {[%clk 0:02:59]} 4. Nc3 {[%clk 0:02:51]}  a6 {[%clk 0:02:59]} 5. c5 {[%clk 0:02:50]}  g6 {[%clk 0:02:57]} 6. Bf4 {[%clk 0:02:46]}  Bg7 {[%clk 0:02:57]} 7. h3 {[%clk 0:02:43]}  O-O {[%clk 0:02:57]} 8. e3 {[%clk 0:02:44]}  Bf5 {[%clk 0:02:55]} 9. Bd3 {[%clk 0:02:40]}  Bxd3 {[%clk 0:02:55]} 10. Qxd3 {[%clk 0:02:41]}  Nbd7 {[%clk 0:02:54]} 11. O-O {[%clk 0:02:39]}  Re8 {[%clk 0:02:54]} 12. Bh2 {[%clk 0:02:38]}  Nh5 {[%clk 0:02:28]} 13. g4 {[%clk 0:02:24]}  Nhf6 {[%clk 0:02:27]} 14. b4 {[%clk 0:02:19]}  b6 {[%clk 0:02:22]} 15. a4 {[%clk 0:02:06]}  a5 {[%clk 0:02:21]} 16. b5 {[%clk 0:02:05]}  bxc5 {[%clk 0:02:16]} 17. bxc6 {[%clk 0:02:04]}  c4 {[%clk 0:02:17]} 18. Qb1 {[%clk 0:02:01]}  Nf8 {[%clk 0:02:08]} 19. Qb5 {[%clk 0:01:33]}  Ne6 {[%clk 0:01:55]} 20. g5 {[%clk 0:01:16]}  Ne4 {[%clk 0:01:51]} 21. Nxe4 {[%clk 0:01:15]}  dxe4 {[%clk 0:01:51]} 22. Nd2 {[%clk 0:01:15]}  Nxg5 {[%clk 0:01:38]} 23. Qxg5 {[%clk 0:01:11]}  Qb6 {[%clk 0:01:32]} 24. Qb5 {[%clk 0:01:05]} 1-0


[Site "https://www.chess.com"]